[Event "Titled Tuesday Blitz November 15 Early 2022"]
[White "Narayanan, Srinath"]
[Black "Ravot, Sylvain"]
[WhiteFideId "5018420"]
[BlackFideId "627763"]
[WhiteElo "2459"]
[BlackElo "2195"]
[Result "1-0"]
[Round "02"]
[TimeControl "180+1"]
[Date "2022.11.16"]
[WhiteClock "0:00:35"]
[BlackClock "0:00:01"]

1. d4 {[%clk 0:03:00]}  Nf6 {[%clk 0:02:57]} 2. Bf4 {[%clk 0:03:00]}  d5 {[%clk 0:02:46]} 3. e3 {[%clk 0:02:59]}  c5 {[%clk 0:02:46]} 4. Nf3 {[%clk 0:02:59]}  Nc6 {[%clk 0:02:47]} 5. Nbd2 {[%clk 0:02:59]}  Bf5 {[%clk 0:02:37]} 6. Bb5 {[%clk 0:02:57]}  Qb6 {[%clk 0:02:23]} 7. c4 {[%clk 0:02:54]}  a6 {[%clk 0:01:41]} 8. Qa4 {[%clk 0:02:28]}  Rc8 {[%clk 0:01:27]} 9. Bxc6+ {[%clk 0:02:27]}  Qxc6 {[%clk 0:01:26]} 10. Qxc6+ {[%clk 0:02:26]}  Rxc6 {[%clk 0:01:22]} 11. cxd5 {[%clk 0:02:26]}  Nxd5 {[%clk 0:01:18]} 12. Bg3 {[%clk 0:02:27]}  Nb4 {[%clk 0:01:02]} 13. O-O {[%clk 0:02:25]}  Bd3 {[%clk 0:00:25]} 14. Rfc1 {[%clk 0:02:19]}  f6 {[%clk 0:00:26]} 15. dxc5 {[%clk 0:01:36]}  Nc2 {[%clk 0:00:13]} 16. Nd4 {[%clk 0:01:29]}  Rxc5 {[%clk 0:00:13]} 17. N2b3 {[%clk 0:01:15]}  Rc8 {[%clk 0:00:09]} 18. Na5 {[%clk 0:01:11]}  b6 {[%clk 0:00:07]} 19. Nab3 {[%clk 0:00:50]}  Kd7 {[%clk 0:00:06]} 20. Nxc2 {[%clk 0:00:46]}  Bxc2 {[%clk 0:00:06]} 21. Nd4 {[%clk 0:00:46]}  Be4 {[%clk 0:00:04]} 22. Rxc8 {[%clk 0:00:47]}  Kxc8 {[%clk 0:00:04]} 23. Rc1+ {[%clk 0:00:48]}  Kd7 {[%clk 0:00:03]} 24. Rc7+ {[%clk 0:00:48]}  Kd8 {[%clk 0:00:03]} 25. Ne6+ {[%clk 0:00:35]}  Ke8 {[%clk 0:00:03]} 26. Ra7 {[%clk 0:00:36]}  a5 {[%clk 0:00:01]} 27. f3 {[%clk 0:00:35]} 1-0


[Site "https://www.chess.com"]

[Event "Titled Tuesday Blitz November 15 Early 2022"]
[White "Nouri, Alekhine"]
[Black "Buscar, Michael"]
[WhiteFideId "5216184"]
[BlackFideId "2603616"]
[WhiteElo "2151"]
[BlackElo "2010"]
[Result "1-0"]
[Round "02"]
[TimeControl "180+1"]
[Date "2022.11.16"]
[WhiteClock "0:00:08"]
[BlackClock "0:00:03"]

1. e4 {[%clk 0:03:00]}  c5 {[%clk 0:02:58]} 2. Nc3 {[%clk 0:03:00]}  g6 {[%clk 0:02:56]} 3. d4 {[%clk 0:02:59]}  cxd4 {[%clk 0:02:54]} 4. Qxd4 {[%clk 0:03:00]}  Nf6 {[%clk 0:02:53]} 5. Nf3 {[%clk 0:02:59]}  Nc6 {[%clk 0:02:50]} 6. Qa4 {[%clk 0:02:58]}  Bg7 {[%clk 0:02:44]} 7. e5 {[%clk 0:02:50]}  Ng8 {[%clk 0:02:39]} 8. Bf4 {[%clk 0:02:45]}  Qa5 {[%clk 0:02:33]} 9. Qxa5 {[%clk 0:02:29]}  Nxa5 {[%clk 0:02:32]} 10. Nd5 {[%clk 0:02:26]}  Kf8 {[%clk 0:02:14]} 11. O-O-O {[%clk 0:02:12]}  Bh6 {[%clk 0:02:09]} 12. g3 {[%clk 0:02:09]}  Bxf4+ {[%clk 0:02:07]} 13. gxf4 {[%clk 0:02:10]}  Nh6 {[%clk 0:02:04]} 14. Bh3 {[%clk 0:02:07]}  d6 {[%clk 0:01:50]} 15. Bxc8 {[%clk 0:02:00]}  Rxc8 {[%clk 0:01:50]} 16. Rhe1 {[%clk 0:02:00]}  e6 {[%clk 0:01:34]} 17. Nf6 {[%clk 0:01:13]}  d5 {[%clk 0:01:33]} 18. b3 {[%clk 0:01:09]}  Ng8 {[%clk 0:01:26]} 19. Kb2 {[%clk 0:01:04]}  Ke7 {[%clk 0:01:22]} 20. Ng4 {[%clk 0:01:00]}  h5 {[%clk 0:01:17]} 21. Ne3 {[%clk 0:00:54]}  Nh6 {[%clk 0:01:07]} 22. Nd4 {[%clk 0:00:46]}  Ng4 {[%clk 0:00:53]} 23. Rd2 {[%clk 0:00:34]}  Nxh2 {[%clk 0:00:49]} 24. f3 {[%clk 0:00:23]}  Nxf3 {[%clk 0:00:25]} 25. Nxf3 {[%clk 0:00:22]}  Rc7 {[%clk 0:00:21]} 26. Ree2 {[%clk 0:00:14]}  Rhc8 {[%clk 0:00:20]} 27. Nd4 {[%clk 0:00:14]}  a6 {[%clk 0:00:18]} 28. a4 {[%clk 0:00:14]}  b6 {[%clk 0:00:16]} 29. Rg2 {[%clk 0:00:13]}  Nb7 {[%clk 0:00:16]} 30. Rg5 {[%clk 0:00:12]}  Nc5 {[%clk 0:00:16]} 31. Rgg2 {[%clk 0:00:09]}  Ne4 {[%clk 0:00:16]} 32. Rd3 {[%clk 0:00:10]}  Rc5 {[%clk 0:00:13]} 33. c4 {[%clk 0:00:10]}  dxc4 {[%clk 0:00:10]} 34. Nxc4 {[%clk 0:00:10]}  Rd8 {[%clk 0:00:09]} 35. Re2 {[%clk 0:00:10]}  Ng3 {[%clk 0:00:05]} 36. Red2 {[%clk 0:00:10]}  h4 {[%clk 0:00:03]} 37. Nc6+ {[%clk 0:00:10]}  Rxc6 {[%clk 0:00:04]} 38. Rxd8 {[%clk 0:00:11]}  Rc7 {[%clk 0:00:03]} 39. Rh8 {[%clk 0:00:08]}  Nf5 {[%clk 0:00:03]} 40. Nd6 {[%clk 0:00:09]}  Rd7 {[%clk 0:00:03]} 41. Re8# {[%clk 0:00:08]} 1-0


[Site "https://www.chess.com"]

[Event "Titled Tuesday Blitz November 15 Early 2022"]
[White "Novikova, Galina"]
[Black "Orlov, Georgi"]
[WhiteFideId "4157095"]
[BlackFideId "2011271"]
[WhiteElo "1973"]
[BlackElo "2532"]
[Result "0-1"]
[Round "02"]
[TimeControl "180+1"]
[Date "2022.11.16"]
[WhiteClock "0:00:02"]
[BlackClock "0:00:17"]

1. e4 {[%clk 0:03:00]}  c5 {[%clk 0:02:58]} 2. Nf3 {[%clk 0:03:01]}  e6 {[%clk 0:02:58]} 3. b4 {[%clk 0:03:01]}  cxb4 {[%clk 0:02:57]} 4. a3 {[%clk 0:03:02]}  d5 {[%clk 0:02:54]} 5. e5 {[%clk 0:03:01]}  Nc6 {[%clk 0:02:50]} 6. axb4 {[%clk 0:03:01]}  Bxb4 {[%clk 0:02:49]} 7. c3 {[%clk 0:03:02]}  Be7 {[%clk 0:02:48]} 8. d4 {[%clk 0:03:03]}  Nh6 {[%clk 0:02:45]} 9. Bd3 {[%clk 0:03:04]}  Nf5 {[%clk 0:02:43]} 10. O-O {[%clk 0:03:04]}  Bd7 {[%clk 0:02:38]} 11. Na3 {[%clk 0:03:03]}  a6 {[%clk 0:02:37]} 12. Nc2 {[%clk 0:03:04]}  Rc8 {[%clk 0:02:36]} 13. Ne3 {[%clk 0:03:05]}  Nh4 {[%clk 0:02:34]} 14. Nxh4 {[%clk 0:02:59]}  Bxh4 {[%clk 0:02:34]} 15. Qg4 {[%clk 0:02:59]}  g6 {[%clk 0:02:33]} 16. Ba3 {[%clk 0:02:46]}  Be7 {[%clk 0:02:28]} 17. Bxe7 {[%clk 0:02:38]}  Qxe7 {[%clk 0:02:27]} 18. Qe2 {[%clk 0:02:32]}  h5 {[%clk 0:02:24]} 19. Rfb1 {[%clk 0:02:27]}  Rc7 {[%clk 0:02:23]} 20. g3 {[%clk 0:01:51]}  Bc8 {[%clk 0:02:11]} 21. Rb2 {[%clk 0:01:43]}  Qd8 {[%clk 0:02:04]} 22. Ng2 {[%clk 0:01:39]}  Ne7 {[%clk 0:02:03]} 23. Nf4 {[%clk 0:01:32]}  Rxc3 {[%clk 0:01:57]} 24. Rc2 {[%clk 0:01:23]}  Rxc2 {[%clk 0:01:56]} 25. Qxc2 {[%clk 0:01:24]}  O-O {[%clk 0:01:34]} 26. Rc1 {[%clk 0:00:27]}  Bd7 {[%clk 0:01:31]} 27. Qd2 {[%clk 0:00:22]}  Kg7 {[%clk 0:01:22]} 28. Nh3 {[%clk 0:00:22]}  Nc6 {[%clk 0:01:20]} 29. Bb1 {[%clk 0:00:19]}  Qe7 {[%clk 0:01:11]} 30. Nf4 {[%clk 0:00:17]}  Rh8 {[%clk 0:01:07]} 31. Qd3 {[%clk 0:00:17]}  Be8 {[%clk 0:01:06]} 32. Ba2 {[%clk 0:00:16]}  h4 {[%clk 0:01:01]} 33. Bxd5 {[%clk 0:00:15]}  Nb4 {[%clk 0:00:59]} 34. Qe4 {[%clk 0:00:08]}  exd5 {[%clk 0:00:55]} 35. Qe1 {[%clk 0:00:05]}  hxg3 {[%clk 0:00:53]} 36. fxg3 {[%clk 0:00:05]}  Bc6 {[%clk 0:00:48]} 37. e6 {[%clk 0:00:05]}  f6 {[%clk 0:00:42]} 38. Qd1 {[%clk 0:00:04]}  Rh6 {[%clk 0:00:40]} 39. Qg4 {[%clk 0:00:04]}  a5 {[%clk 0:00:38]} 40. Rf1 {[%clk 0:00:04]}  Kh7 {[%clk 0:00:37]} 41. h4 {[%clk 0:00:03]}  Nc2 {[%clk 0:00:35]} 42. h5 {[%clk 0:00:04]}  g5 {[%clk 0:00:30]} 43. Qf5+ {[%clk 0:00:04]}  Kg7 {[%clk 0:00:28]} 44. Ng6 {[%clk 0:00:04]}  Qd8 {[%clk 0:00:18]} 45. e7 {[%clk 0:00:05]}  Qd6 {[%clk 0:00:18]} 46. Qc8 {[%clk 0:00:03]}  Rxh5 {[%clk 0:00:18]} 47. Qf8+ {[%clk 0:00:02]}  Kxg6 {[%clk 0:00:18]} 48. Qg8+ {[%clk 0:00:02]}  Kh6 {[%clk 0:00:18]} 49. e8=Q {[%clk 0:00:02]}  Qxg3# {[%clk 0:00:17]} 0-1


[Site "https://www.chess.com"]

[Event "Titled Tuesday Blitz November 15 Early 2022"]
[White "Ovchinnikov, Vsevolod"]
[Black "Zeydan, Salih"]
[WhiteFideId "24176842"]
[BlackFideId "6361722"]
[WhiteElo "2376"]
[BlackElo "1988"]
[Result "1-0"]
[Round "02"]
[TimeControl "180+1"]
[Date "2022.11.16"]
[WhiteClock "0:00:13"]
[BlackClock "0:00:12"]

1. d4 {[%clk 0:03:00]}  Nf6 {[%clk 0:02:57]} 2. c4 {[%clk 0:03:01]}  g6 {[%clk 0:02:47]} 3. Nc3 {[%clk 0:03:00]}  d5 {[%clk 0:02:47]} 4. Nf3 {[%clk 0:03:00]}  Bg7 {[%clk 0:02:47]} 5. h4 {[%clk 0:03:01]}  h5 {[%clk 0:02:43]} 6. Bg5 {[%clk 0:03:00]}  dxc4 {[%clk 0:02:42]} 7. e4 {[%clk 0:02:58]}  O-O {[%clk 0:02:27]} 8. Bxc4 {[%clk 0:02:57]}  c6 {[%clk 0:02:27]} 9. a4 {[%clk 0:02:42]}  Bg4 {[%clk 0:02:17]} 10. Be3 {[%clk 0:02:07]}  Qa5 {[%clk 0:02:00]} 11. Qb3 {[%clk 0:02:05]}  Nxe4 {[%clk 0:01:54]} 12. Ne5 {[%clk 0:01:37]}  b5 {[%clk 0:01:43]} 13. Bxf7+ {[%clk 0:01:29]}  Kh8 {[%clk 0:01:28]} 14. Nxg6+ {[%clk 0:01:28]}  Kh7 {[%clk 0:01:27]} 15. Nxf8+ {[%clk 0:01:29]}  Bxf8 {[%clk 0:01:25]} 16. O-O {[%clk 0:01:15]}  Nxc3 {[%clk 0:01:17]} 17. Qc2+ {[%clk 0:01:03]}  Kh8 {[%clk 0:01:16]} 18. bxc3 {[%clk 0:01:03]}  Nd7 {[%clk 0:01:13]} 19. Qg6 {[%clk 0:01:02]}  Nf6 {[%clk 0:00:59]} 20. axb5 {[%clk 0:00:29]}  Qxc3 {[%clk 0:00:56]} 21. bxc6 {[%clk 0:00:26]}  Qxc6 {[%clk 0:00:55]} 22. Bg5 {[%clk 0:00:24]}  Bg7 {[%clk 0:00:52]} 23. f3 {[%clk 0:00:20]}  Be6 {[%clk 0:00:25]} 24. Bxe6 {[%clk 0:00:17]}  Qxe6 {[%clk 0:00:24]} 25. Rae1 {[%clk 0:00:18]}  Qd6 {[%clk 0:00:24]} 26. Kh1 {[%clk 0:00:14]}  a5 {[%clk 0:00:20]} 27. d5 {[%clk 0:00:13]}  a4 {[%clk 0:00:19]} 28. Re6 {[%clk 0:00:13]}  Qxd5 {[%clk 0:00:18]} 29. Rxe7 {[%clk 0:00:13]}  Rg8 {[%clk 0:00:15]} 30. Rxg7 {[%clk 0:00:13]}  Rxg7 {[%clk 0:00:15]} 31. Bxf6 {[%clk 0:00:14]}  Qd7 {[%clk 0:00:11]} 32. Bxg7+ {[%clk 0:00:13]}  Qxg7 {[%clk 0:00:12]} 33. Qxg7+ {[%clk 0:00:13]} 1-0


[Site "https://www.chess.com"]

[Event "Titled Tuesday Blitz November 15 Early 2022"]
[White "Papayan, Oleg"]
[Black "Copeland, Samuel"]
[WhiteFideId "4193911"]
[BlackFideId "2007347"]
[WhiteElo "2153"]
[BlackElo "2307"]
[Result "0-1"]
[Round "02"]
[TimeControl "180+1"]
[Date "2022.11.16"]
[WhiteClock "0:00:06"]
[BlackClock "0:00:14"]

1. e4 {[%clk 0:03:00]}  Nf6 {[%clk 0:02:57]} 2. e5 {[%clk 0:03:01]}  Nd5 {[%clk 0:02:57]} 3. d4 {[%clk 0:03:01]}  d6 {[%clk 0:02:57]} 4. c4 {[%clk 0:03:02]}  Nb6 {[%clk 0:02:56]} 5. f4 {[%clk 0:03:02]}  dxe5 {[%clk 0:02:56]} 6. fxe5 {[%clk 0:03:03]}  Bf5 {[%clk 0:02:56]} 7. Nc3 {[%clk 0:03:03]}  Nc6 {[%clk 0:02:54]} 8. Be3 {[%clk 0:03:02]}  e6 {[%clk 0:02:53]} 9. Nf3 {[%clk 0:03:02]}  Be7 {[%clk 0:02:53]} 10. Be2 {[%clk 0:03:01]}  O-O {[%clk 0:02:53]} 11. O-O {[%clk 0:03:02]}  f6 {[%clk 0:02:53]} 12. exf6 {[%clk 0:03:02]}  Bxf6 {[%clk 0:02:54]} 13. Qd2 {[%clk 0:03:02]}  Qe7 {[%clk 0:02:53]} 14. Rad1 {[%clk 0:03:01]}  Rad8 {[%clk 0:02:53]} 15. Qc1 {[%clk 0:03:01]}  Bg4 {[%clk 0:02:50]} 16. Ne4 {[%clk 0:02:39]}  h6 {[%clk 0:02:24]} 17. b3 {[%clk 0:01:41]}  Bxf3 {[%clk 0:01:58]} 18. Nxf6+ {[%clk 0:01:41]}  Rxf6 {[%clk 0:01:55]} 19. Bxf3 {[%clk 0:01:27]}  Rdf8 {[%clk 0:01:32]} 20. Qc2 {[%clk 0:01:09]}  Nb4 {[%clk 0:01:20]} 21. Qe4 {[%clk 0:01:07]}  c6 {[%clk 0:01:18]} 22. Rf2 {[%clk 0:00:35]}  Na6 {[%clk 0:01:13]} 23. Rdf1 {[%clk 0:00:29]}  Nc7 {[%clk 0:01:11]} 24. Bg4 {[%clk 0:00:27]}  Rxf2 {[%clk 0:01:10]} 25. Rxf2 {[%clk 0:00:28]}  Rxf2 {[%clk 0:01:10]} 26. Bxf2 {[%clk 0:00:29]}  Nd7 {[%clk 0:01:04]} 27. Bg3 {[%clk 0:00:27]}  Nf6 {[%clk 0:01:03]} 28. Qe5 {[%clk 0:00:17]}  Nxg4 {[%clk 0:00:58]} 29. Qxc7 {[%clk 0:00:17]}  Qf6 {[%clk 0:00:31]} 30. Qf4 {[%clk 0:00:13]}  Qg6 {[%clk 0:00:29]} 31. h3 {[%clk 0:00:11]}  Qb1+ {[%clk 0:00:28]} 32. Qf1 {[%clk 0:00:12]}  Qxf1+ {[%clk 0:00:23]} 33. Kxf1 {[%clk 0:00:13]}  Ne3+ {[%clk 0:00:23]} 34. Ke2 {[%clk 0:00:13]}  Nc2 {[%clk 0:00:21]} 35. Kd3 {[%clk 0:00:12]}  Nb4+ {[%clk 0:00:19]} 36. Ke4 {[%clk 0:00:12]}  Nxa2 {[%clk 0:00:18]} 37. Ke5 {[%clk 0:00:12]}  Kf7 {[%clk 0:00:18]} 38. Be1 {[%clk 0:00:12]}  Nc1 {[%clk 0:00:17]} 39. Ke4 {[%clk 0:00:03]}  Nxb3 {[%clk 0:00:17]} 40. c5 {[%clk 0:00:02]}  a5 {[%clk 0:00:14]} 41. Kd3 {[%clk 0:00:01]}  a4 {[%clk 0:00:14]} 42. Kc3 {[%clk 0:00:01]}  e5 {[%clk 0:00:14]} 43. dxe5 {[%clk 0:00:02]}  Ke6 {[%clk 0:00:14]} 44. Kb4 {[%clk 0:00:02]}  Kxe5 {[%clk 0:00:13]} 45. Kxa4 {[%clk 0:00:03]}  Nxc5+ {[%clk 0:00:13]} 46. Kb4 {[%clk 0:00:04]}  Ne4 {[%clk 0:00:14]} 47. g4 {[%clk 0:00:04]}  Kd4 {[%clk 0:00:12]} 48. Ka5 {[%clk 0:00:04]}  c5 {[%clk 0:00:12]} 49. Kb6 {[%clk 0:00:04]}  c4 {[%clk 0:00:13]} 50. Kxb7 {[%clk 0:00:05]}  c3 {[%clk 0:00:13]} 51. Bxc3+ {[%clk 0:00:04]}  Nxc3 {[%clk 0:00:13]} 52. Kc6 {[%clk 0:00:05]}  Ke5 {[%clk 0:00:13]} 53. Kd7 {[%clk 0:00:06]}  Kf6 {[%clk 0:00:13]} 54. Kd6 {[%clk 0:00:06]}  Ne4+ {[%clk 0:00:13]} 55. Kd5 {[%clk 0:00:06]}  Nf2 {[%clk 0:00:14]} 56. h4 {[%clk 0:00:06]}  Nxg4 {[%clk 0:00:14]} 0-1


[Site "https://www.chess.com"]

[Event "Titled Tuesday Blitz November 15 Early 2022"]
[White "Perez Gormaz, Matias"]
[Black "Fedoseev, Vladimir"]
[WhiteFideId "3406342"]
[BlackFideId "24130737"]
[WhiteElo "2341"]
[BlackElo "2726"]
[Result "0-1"]
[Round "02"]
[TimeControl "180+1"]
[Date "2022.11.15"]
[WhiteClock "0:00:08"]
[BlackClock "0:00:02"]

1. e4 {[%clk 0:03:00]}  c6 {[%clk 0:02:58]} 2. d4 {[%clk 0:02:59]}  d5 {[%clk 0:02:54]} 3. exd5 {[%clk 0:03:00]}  cxd5 {[%clk 0:02:54]} 4. Bd3 {[%clk 0:03:01]}  Nc6 {[%clk 0:02:54]} 5. c3 {[%clk 0:03:01]}  Qc7 {[%clk 0:02:54]} 6. h3 {[%clk 0:02:58]}  g6 {[%clk 0:02:50]} 7. Nf3 {[%clk 0:02:58]}  Bg7 {[%clk 0:02:48]} 8. O-O {[%clk 0:02:58]}  Nf6 {[%clk 0:02:46]} 9. Na3 {[%clk 0:02:55]}  Bf5 {[%clk 0:02:44]} 10. Nb5 {[%clk 0:02:55]}  Qb6 {[%clk 0:02:37]} 11. Bf4 {[%clk 0:02:52]}  Rc8 {[%clk 0:02:36]} 12. Re1 {[%clk 0:02:40]}  Ne4 {[%clk 0:02:09]} 13. c4 {[%clk 0:02:22]}  Nb4 {[%clk 0:01:43]} 14. Bf1 {[%clk 0:02:00]}  O-O {[%clk 0:01:31]} 15. a3 {[%clk 0:01:54]}  g5 {[%clk 0:00:41]} 16. Bh2 {[%clk 0:01:44]}  dxc4 {[%clk 0:00:39]} 17. Nxa7 {[%clk 0:01:16]}  Qxa7 {[%clk 0:00:34]} 18. axb4 {[%clk 0:01:17]}  Qb6 {[%clk 0:00:34]} 19. Ra5 {[%clk 0:01:17]}  e6 {[%clk 0:00:30]} 20. g4 {[%clk 0:01:07]}  Bg6 {[%clk 0:00:25]} 21. Ne5 {[%clk 0:01:02]}  Nf6 {[%clk 0:00:17]} 22. Nxc4 {[%clk 0:00:36]}  Qd8 {[%clk 0:00:17]} 23. Rxg5 {[%clk 0:00:31]}  Nd5 {[%clk 0:00:15]} 24. h4 {[%clk 0:00:22]}  h6 {[%clk 0:00:15]} 25. Rxg6 {[%clk 0:00:23]}  fxg6 {[%clk 0:00:16]} 26. Rxe6 {[%clk 0:00:21]}  Qxh4 {[%clk 0:00:15]} 27. Bg3 {[%clk 0:00:22]}  Qg5 {[%clk 0:00:15]} 28. Nd6 {[%clk 0:00:20]}  Nf4 {[%clk 0:00:10]} 29. Nxc8 {[%clk 0:00:16]}  Nxe6 {[%clk 0:00:10]} 30. Nd6 {[%clk 0:00:14]}  Nxd4 {[%clk 0:00:10]} 31. Bg2 {[%clk 0:00:13]}  b5 {[%clk 0:00:07]} 32. Ne4 {[%clk 0:00:10]}  Qd8 {[%clk 0:00:07]} 33. Nc5 {[%clk 0:00:10]}  Kh7 {[%clk 0:00:05]} 34. Qd3 {[%clk 0:00:10]}  Nf3+ {[%clk 0:00:04]} 35. Bxf3 {[%clk 0:00:05]}  Qxd3 {[%clk 0:00:05]} 36. Nxd3 {[%clk 0:00:06]}  Rxf3 {[%clk 0:00:05]} 37. Nc5 {[%clk 0:00:07]}  Bxb2 {[%clk 0:00:04]} 38. Kg2 {[%clk 0:00:06]}  Rf7 {[%clk 0:00:02]} 39. Nd3 {[%clk 0:00:07]}  Bc3 {[%clk 0:00:02]} 40. Nf4 {[%clk 0:00:08]}  Bxb4 {[%clk 0:00:02]} 41. Nd5 {[%clk 0:00:08]}  Bf8 {[%clk 0:00:03]} 42. Be5 {[%clk 0:00:08]}  Bg7 {[%clk 0:00:03]} 43. Bd6 {[%clk 0:00:08]}  Rd7 {[%clk 0:00:02]} 0-1


[Site "https://www.chess.com"]

[Event "Titled Tuesday Blitz November 15 Early 2022"]
[White "Perez Rodriguez, Jennifer"]
[Black "Kopacz, Grzegorz"]
[WhiteFideId "3507831"]
[BlackFideId "1109880"]
[WhiteElo "2170"]
[BlackElo "2037"]
[Result "1-0"]
[Round "02"]
[TimeControl "180+1"]
[Date "2022.11.16"]
[WhiteClock "0:00:23"]
[BlackClock "0:00:23"]

1. e4 {[%clk 0:03:00]}  c5 {[%clk 0:02:59]} 2. c3 {[%clk 0:03:00]}  g6 {[%clk 0:02:57]} 3. d4 {[%clk 0:03:00]}  cxd4 {[%clk 0:02:57]} 4. cxd4 {[%clk 0:03:00]}  d5 {[%clk 0:02:57]} 5. e5 {[%clk 0:03:01]}  Nc6 {[%clk 0:02:57]} 6. Nf3 {[%clk 0:03:02]}  Bg7 {[%clk 0:02:57]} 7. Bb5 {[%clk 0:03:02]}  Bd7 {[%clk 0:02:56]} 8. O-O {[%clk 0:03:02]}  e6 {[%clk 0:02:57]} 9. Nbd2 {[%clk 0:02:58]}  Nge7 {[%clk 0:02:57]} 10. b3 {[%clk 0:02:58]}  Nxe5 {[%clk 0:02:52]} 11. Bxd7+ {[%clk 0:02:48]}  Nxd7 {[%clk 0:02:52]} 12. Ba3 {[%clk 0:02:48]}  O-O {[%clk 0:02:50]} 13. Re1 {[%clk 0:02:48]}  Re8 {[%clk 0:02:50]} 14. Rc1 {[%clk 0:02:46]}  Nc6 {[%clk 0:02:51]} 15. Nf1 {[%clk 0:02:45]}  Nf6 {[%clk 0:02:47]} 16. Ng3 {[%clk 0:02:37]}  Qa5 {[%clk 0:02:45]} 17. Bc5 {[%clk 0:02:29]}  Nd7 {[%clk 0:02:32]} 18. b4 {[%clk 0:02:14]}  Nxb4 {[%clk 0:02:25]} 19. Qd2 {[%clk 0:02:09]}  Nc6 {[%clk 0:02:23]} 20. Qf4 {[%clk 0:02:05]}  Rac8 {[%clk 0:01:53]} 21. h4 {[%clk 0:01:49]}  Nxc5 {[%clk 0:01:46]} 22. Rxc5 {[%clk 0:01:48]}  Qc7 {[%clk 0:01:46]} 23. Qg4 {[%clk 0:01:42]}  b6 {[%clk 0:01:41]} 24. Rc2 {[%clk 0:01:37]}  Qd6 {[%clk 0:01:36]} 25. h5 {[%clk 0:01:30]}  Nxd4 {[%clk 0:01:27]} 26. Nxd4 {[%clk 0:01:28]}  Rxc2 {[%clk 0:01:17]} 27. Nxc2 {[%clk 0:01:27]}  Rc8 {[%clk 0:01:16]} 28. Ne3 {[%clk 0:01:19]}  d4 {[%clk 0:01:13]} 29. Nef1 {[%clk 0:01:19]}  d3 {[%clk 0:01:05]} 30. hxg6 {[%clk 0:01:13]}  hxg6 {[%clk 0:01:03]} 31. Qe4 {[%clk 0:01:09]}  d2 {[%clk 0:00:59]} 32. Rd1 {[%clk 0:01:09]}  Rc1 {[%clk 0:00:57]} 33. Qe2 {[%clk 0:01:08]}  Bc3 {[%clk 0:00:44]} 34. Ne4 {[%clk 0:01:07]}  Qd4 {[%clk 0:00:44]} 35. Nxc3 {[%clk 0:01:05]}  Qxc3 {[%clk 0:00:44]} 36. Rxd2 {[%clk 0:01:05]}  Qa1 {[%clk 0:00:42]} 37. g3 {[%clk 0:01:01]}  a5 {[%clk 0:00:38]} 38. Kg2 {[%clk 0:01:01]}  Qf6 {[%clk 0:00:36]} 39. Ne3 {[%clk 0:01:01]}  Rc5 {[%clk 0:00:36]} 40. Ng4 {[%clk 0:00:58]}  Qf5 {[%clk 0:00:36]} 41. Rd8+ {[%clk 0:00:53]}  Kh7 {[%clk 0:00:35]} 42. Rd1 {[%clk 0:00:40]}  Rd5 {[%clk 0:00:35]} 43. Rh1+ {[%clk 0:00:39]}  Kg7 {[%clk 0:00:33]} 44. Qb2+ {[%clk 0:00:39]}  e5 {[%clk 0:00:33]} 45. Qe2 {[%clk 0:00:33]}  e4 {[%clk 0:00:30]} 46. Ne3 {[%clk 0:00:32]}  Qf3+ {[%clk 0:00:30]} 47. Qxf3 {[%clk 0:00:32]}  exf3+ {[%clk 0:00:31]} 48. Kxf3 {[%clk 0:00:33]}  Rd2 {[%clk 0:00:31]} 49. Ra1 {[%clk 0:00:31]}  Kf6 {[%clk 0:00:31]} 50. Nc4 {[%clk 0:00:30]}  Rd3+ {[%clk 0:00:28]} 51. Ke4 {[%clk 0:00:29]}  Rc3 {[%clk 0:00:24]} 52. Nxb6 {[%clk 0:00:29]}  Rc2 {[%clk 0:00:24]} 53. Nd5+ {[%clk 0:00:29]}  Ke6 {[%clk 0:00:24]} 54. Nf4+ {[%clk 0:00:29]}  Kd6 {[%clk 0:00:24]} 55. Nd3 {[%clk 0:00:29]}  f5+ {[%clk 0:00:23]} 56. Ke3 {[%clk 0:00:29]}  Rc3 {[%clk 0:00:23]} 57. Rb1 {[%clk 0:00:27]}  Rc2 {[%clk 0:00:23]} 58. Rb2 {[%clk 0:00:22]}  Rc3 {[%clk 0:00:23]} 59. Rb3 {[%clk 0:00:20]}  Rc2 {[%clk 0:00:23]} 60. Ra3 {[%clk 0:00:20]}  g5 {[%clk 0:00:20]} 61. Rxa5 {[%clk 0:00:20]}  f4+ {[%clk 0:00:20]} 62. gxf4 {[%clk 0:00:21]}  gxf4+ {[%clk 0:00:21]} 63. Nxf4 {[%clk 0:00:21]}  Rc3+ {[%clk 0:00:20]} 64. Nd3 {[%clk 0:00:22]}  Rc2 {[%clk 0:00:20]} 65. Ra6+ {[%clk 0:00:21]}  Kd5 {[%clk 0:00:20]} 66. a4 {[%clk 0:00:21]}  Ra2 {[%clk 0:00:20]} 67. Nb4+ {[%clk 0:00:21]}  Kc4 {[%clk 0:00:19]} 68. Nxa2 {[%clk 0:00:22]}  Kb3 {[%clk 0:00:18]} 69. f4 {[%clk 0:00:22]}  Kxa2 {[%clk 0:00:19]} 70. f5 {[%clk 0:00:22]}  Ka1 {[%clk 0:00:20]} 71. f6 {[%clk 0:00:23]}  Ka2 {[%clk 0:00:21]} 72. f7 {[%clk 0:00:23]}  Ka1 {[%clk 0:00:22]} 73. f8=Q {[%clk 0:00:23]}  Ka2 {[%clk 0:00:23]} 1-0


[Site "https://www.chess.com"]